bitfinex-derivatives/quotes_BTCF0:USTF0_20251215
["timestamp","ask_amount","ask_price","bid_price","bid_amount"]
[1765804922721,0.1690751,89486.0,89485.0,0.04824366]
[1765804923530,0.1690751,89486.0,89485.0,0.07679366]
[1765804933433,0.1690751,89486.0,89485.0,0.01984366]
[1765804933925,0.1690751,89486.0,89485.0,0.04824366]
[1765804934336,0.1690751,89486.0,89485.0,0.07679366]
[1765804935140,0.1680751,89486.0,89485.0,0.04724366]
[1765804935333,0.1690751,89486.0,89485.0,0.01684366]
[1765804935535,0.1690751,89486.0,89485.0,0.001]
[1765804935738,0.1690751,89486.0,89485.0,0.01661994]
[1765804937135,0.1690751,89486.0,89485.0,0.07356994]
[1765804937531,0.0690751,89486.0,89485.0,0.07356994]
[1765804937952,0.0121751,89486.0,89485.0,0.07356994]
[1765804939840,0.001,89486.0,89485.0,0.77200994]
[1765804941648,0.0111747,89490.0,89489.0,0.05695]
[1765804942241,0.0111743,89493.0,89492.0,0.07195]
[1765804943438,0.0405243,89493.0,89492.0,0.05695]
[1765804944053,0.0687343,89493.0,89492.0,0.75535]
[1765804944243,0.0687343,89493.0,89492.0,0.05695]
[1765804944444,0.0687343,89493.0,89492.0,0.68295]
[1765804944643,0.0697343,89493.0,89492.0,0.68295]
[1765804944946,0.0697343,89493.0,89492.0,0.05695]
[1765804952347,0.07339,89492.0,89491.0,0.69836]
[1765804952552,0.05679,89489.0,89488.0,0.41637]
[1765804952752,0.05679,89489.0,89488.0,1.11473]
[1765804953056,0.0679647,89489.0,89488.0,1.11473]
[1765804953558,0.0111747,89489.0,89488.0,1.11473]
[1765804953770,0.0111745,89492.0,89491.0,0.05557]
[1765804955257,0.0679645,89492.0,89491.0,0.05557]
[1765804956147,0.0689645,89492.0,89491.0,0.05657]
[1765804956351,0.0689645,89492.0,89491.0,0.41737]
[1765804956849,0.0689645,89492.0,89491.0,1.11573]
[1765804958356,0.0689645,89492.0,89491.0,0.05657]
[1765804958546,0.0689645,89492.0,89491.0,0.60857]
[1765804961268,0.0121745,89492.0,89491.0,0.60857]
[1765804961455,0.0689645,89492.0,89491.0,0.05657]
[1765804961661,0.0689645,89492.0,89491.0,0.75493]
[1765804962357,0.0689645,89492.0,89491.0,0.05657]
[1765804962552,0.0689645,89492.0,89491.0,0.66537]
[1765804963054,0.1989645,89492.0,89491.0,0.75489]
[1765804963250,0.0689645,89492.0,89491.0,0.75489]
[1765804964350,0.0689645,89492.0,89491.0,0.05657]
[1765804964548,0.0689645,89492.0,89491.0,0.60141]
[1765804965263,0.2489645,89492.0,89491.0,0.60141]
[1765804966154,0.2489645,89492.0,89491.0,0.05657]
[1765804968565,0.2655645,89492.0,89491.0,0.05657]
[1765804975368,0.2655645,89492.0,89491.0,0.05657]
[1765804975864,0.2655645,89492.0,89491.0,0.001]
[1765804977168,0.2655645,89492.0,89491.0,0.02804]
[1765804977357,0.2655645,89492.0,89491.0,0.001]
[1765804978862,0.2655645,89492.0,89491.0,0.02804]
[1765804979062,0.2655645,89492.0,89491.0,0.001]
[1765804986574,0.0673751,89486.0,89485.0,0.04520994]
[1765804986767,0.0842254,89484.0,89483.0,0.3608]
[1765804986968,0.0673766,89474.0,89473.0,0.10994091]
[1765804987175,0.06748863,89474.0,89473.0,0.10994091]
[1765804987475,0.06748863,89474.0,89473.0,0.07326757]
[1765804987775,0.25748863,89474.0,89473.0,0.07326757]
[1765804988275,0.06748863,89474.0,89473.0,0.07326757]
[1765804988975,0.06748863,89474.0,89473.0,0.07526757]
[1765804989567,0.06848863,89474.0,89473.0,0.07526757]
[1765804992761,0.06848863,89474.0,89473.0,0.04717757]
[1765804992762,0.21848863,89474.0,89473.0,0.04717757]
[1765804992968,0.21848863,89474.0,89473.0,0.01758757]
[1765804993178,0.21848863,89474.0,89473.0,7e-08]
[1765804993575,0.24323879,89474.0,89473.0,0.05768007]
[1765804993775,0.24323862,89474.0,89473.0,0.05768007]
[1765804993969,0.21848863,89474.0,89473.0,0.05768007]
[1765804994568,0.21848863,89474.0,89473.0,0.05768]
[1765804994771,0.21848863,89474.0,89473.0,0.05868]
[1765804995575,0.22048863,89474.0,89473.0,0.05768]
[1765804996183,0.22148863,89474.0,89473.0,0.05768]
[1765804996371,0.067378,89463.0,89462.0,0.41848]
[1765804996681,0.247378,89463.0,89462.0,0.41848]
[1765804996873,0.247378,89463.0,89462.0,0.43276079]
[1765804997077,0.067378,89463.0,89462.0,0.43276079]
[1765804997278,0.0673785,89459.0,89458.0,0.0022357]
[1765804997576,0.0562,89429.0,89428.0,0.02959]
[1765804997769,0.0562,89429.0,89411.0,0.14020002]
[1765804997770,0.0562,89426.0,89425.0,0.04108169]
[1765804997965,0.0762,89426.0,89425.0,0.09876169]
[1765804998271,0.0382524,89428.0,89427.0,0.05768]
[1765804998474,0.23746361,89428.0,89427.0,0.05768]
[1765804999576,0.23746361,89428.0,89425.0,0.04108169]
[1765804999766,0.0562,89426.0,89425.0,0.07067169]
[1765804999972,0.1762,89426.0,89425.0,0.09876169]
[1765805000168,0.1762,89426.0,89425.0,0.09023447]
[1765805000371,0.0562,89426.0,89425.0,0.09023447]
[1765805000566,0.02707,89426.0,89425.0,0.09023447]
[1765805001079,0.01226361,89428.0,89427.0,0.05768]
[1765805001264,0.01226361,89428.0,89427.0,0.06368]
[1765805001469,0.03933361,89428.0,89427.0,0.06368]
[1765805001675,0.06746361,89428.0,89427.0,0.06368]
[1765805002176,0.06746361,89428.0,89427.0,0.05768]
[1765805002388,0.24746361,89428.0,89427.0,0.05768]
[1765805002584,0.06746361,89428.0,89427.0,0.05768]
[1765805003085,0.06846361,89428.0,89427.0,0.05768]
[1765805003474,0.06946361,89428.0,89427.0,0.05768]
[1765805004180,0.24946361,89428.0,89427.0,0.05768]
[1765805005282,0.06846361,89428.0,89427.0,0.05768]
[1765805005474,0.06946361,89428.0,89427.0,0.05768]
[1765805005670,0.19946361,89428.0,89427.0,0.05768]
[1765805006285,0.19846361,89428.0,89427.0,0.05768]
[1765805006485,0.06846361,89428.0,89427.0,0.05768]
[1765805006681,0.06946361,89428.0,89427.0,0.05768]
[1765805007180,0.06846361,89428.0,89427.0,0.05768]
[1765805007384,0.06946361,89428.0,89427.0,0.05768]
[1765805010986,0.01326361,89428.0,89427.0,0.05768]
[1765805012274,0.01226361,89428.0,89427.0,0.05768]
[1765805012474,0.01326361,89428.0,89427.0,0.05768]
[1765805015789,0.011181,89439.0,89436.0,0.06779]
[1765805015976,0.011181,89439.0,89436.0,0.62915]
[1765805016489,0.011181,89439.0,89436.0,0.71783024]
[1765805016688,0.00026319,89437.0,89436.0,0.71783024]
[1765805016884,0.00326319,89437.0,89436.0,0.71783024]
[1765805017086,0.06285319,89437.0,89436.0,0.05783]
[1765805018173,0.00426319,89437.0,89436.0,0.05783]
[1765805018784,0.00126319,89437.0,89436.0,0.05783]
[1765805018988,0.00126319,89437.0,89436.0,0.07283]
[1765805021392,0.00026319,89437.0,89436.0,0.07283]
[1765805021587,0.00126319,89437.0,89436.0,0.07283]
[1765805022389,0.00126319,89437.0,89436.0,0.07383]
[1765805023779,0.00026319,89437.0,89436.0,0.07383]
[1765805023982,0.3608,89443.0,89442.0,0.06779]
[1765805024182,0.3608,89443.0,89442.0,0.0789706]
[1765805024589,0.39007,89443.0,89442.0,0.0690106]
[1765805024794,0.39007,89443.0,89442.0,0.05783]
[1765805024978,0.39012165,89443.0,89442.0,0.05783]
[1765805025392,0.41744165,89443.0,89442.0,0.44235]
[1765805025895,0.41744165,89443.0,89442.0,0.75735]
[1765805026486,0.41844165,89443.0,89442.0,0.75835]
[1765805026800,0.36185165,89443.0,89442.0,0.75835]
[1765805026982,0.36185165,89443.0,89442.0,0.75735]
[1765805027186,0.36185165,89443.0,89442.0,0.75835]
[1765805027993,0.39112165,89443.0,89442.0,0.75835]
[1765805028495,0.41844165,89443.0,89442.0,0.75835]
[1765805028993,0.41844165,89443.0,89442.0,0.7695306]
[1765805030684,0.41844165,89443.0,89442.0,0.05883]
[1765805030997,0.54844165,89443.0,89442.0,0.6768706]
[1765805031497,0.41844165,89443.0,89442.0,0.7347006]
[1765805031796,0.58844165,89443.0,89442.0,0.6768706]
[1765805031989,0.58844165,89443.0,89442.0,0.001]
[1765805032502,0.58844165,89443.0,89434.0,0.00016769]
[1765805032503,0.0677715,89435.0,89434.0,0.05799769]
[1765805032692,0.4285715,89435.0,89434.0,0.05799769]
[1765805033689,0.4285715,89435.0,89434.0,0.05899769]
[1765805033894,0.4295715,89435.0,89434.0,0.06099769]
[1765805035703,0.6195715,89435.0,89434.0,0.06099769]
[1765805035997,0.4295715,89435.0,89434.0,0.06099769]
[1765805036199,0.4022515,89435.0,89434.0,0.06099769]
[1765805036496,0.3618,89435.0,89434.0,0.06099769]
[1765805036702,0.41839,89435.0,89434.0,0.06099769]
[1765805042200,0.41839,89435.0,89434.0,0.00316769]
[1765805042201,0.54839,89435.0,89434.0,0.00316769]
[1765805045304,0.0678926,89426.0,89425.0,0.03255447]
[1765805045511,0.6086926,89426.0,89425.0,0.05980447]
[1765805046305,0.4286926,89426.0,89425.0,0.08883447]
[1765805046500,0.4296926,89426.0,89425.0,0.09083447]
[1765805046706,0.5696926,89426.0,89425.0,0.03455447]
[1765805047009,0.5696926,89426.0,89425.0,0.03755447]
[1765805050012,0.05671,89419.0,89418.0,0.0022367]
[1765805050206,0.41751,89419.0,89418.0,0.0294867]
[1765805050401,0.60751,89419.0,89418.0,0.0294867]
[1765805051010,0.60751,89419.0,89418.0,0.0022367]
[1765805051808,0.41751,89419.0,89418.0,0.0022367]
[1765805052206,0.56751,89419.0,89418.0,0.0022367]
[1765805052514,0.56851,89419.0,89418.0,0.0022367]
[1765805052904,0.41851,89419.0,89418.0,0.0022367]
[1765805053105,0.41851,89419.0,89418.0,0.0585167]
[1765805053616,0.41851,89419.0,89418.0,0.0754867]
[1765805053813,0.41851,89419.0,89418.0,0.0866703]
[1765805054708,0.41851,89419.0,89418.0,0.0697003]
[1765805054919,0.41851,89419.0,89418.0,0.0294867]
[1765805055621,0.41851,89419.0,89418.0,0.0585167]
[1765805056531,0.41851,89419.0,89418.0,0.0754867]
[1765805057632,0.41851,89419.0,89418.0,0.0585167]
[1765805058537,0.41851,89419.0,89418.0,0.0754867]
[1765805059730,0.39003,89419.0,89418.0,0.0754867]
[1765805060230,0.3618,89419.0,89418.0,0.0754867]
[1765805061026,0.39003,89419.0,89418.0,0.0754867]
[1765805061227,0.41851,89419.0,89418.0,0.0754867]
[1765805062033,0.41851,89419.0,89418.0,0.0022367]
[1765805062229,0.05671,89417.0,89416.0,0.01471114]
[1765805062423,0.05671,89408.0,89407.0,0.18839195]
[1765805062621,0.05671,89408.0,89407.0,0.05628]
[1765805062622,0.41756165,89408.0,89407.0,0.05628]
[1765805062932,0.42874655,89408.0,89407.0,0.07232814]
[1765805063133,0.42874655,89408.0,89407.0,0.01604814]
[1765805063440,0.42874655,89408.0,89400.0,0.46196]
[1765805063441,0.0678957,89401.0,89400.0,0.48921]
[1765805063627,0.0678957,89401.0,89400.0,0.07171545]
[1765805064027,0.0678957,89401.0,89400.0,0.01543545]
[1765805064028,0.2178957,89401.0,89400.0,0.01543545]
[1765805064338,0.0678966,89394.0,89393.0,0.05636201]
[1765805064533,0.4286966,89394.0,89393.0,0.05636201]
[1765805065233,0.5886966,89394.0,89393.0,0.01590177]
[1765805065439,0.4286966,89394.0,89393.0,0.04315177]
[1765805065626,0.4286966,89394.0,89393.0,0.07218177]
[1765805066737,0.4286966,89394.0,89393.0,0.07518177]
[1765805067325,0.5796966,89394.0,89393.0,0.01890177]
[1765805067729,0.5796966,89394.0,89393.0,0.00308201]
[1765805067730,0.5786966,89394.0,89393.0,0.00308201]
[1765805067932,0.4306966,89394.0,89393.0,0.05936201]
[1765805068130,0.4326966,89394.0,89393.0,0.05636201]
[1765805068336,0.4326966,89394.0,89393.0,8.201e-05]
[1765805068532,0.4326966,89394.0,89393.0,0.02733201]
[1765805068734,0.4326966,89394.0,89393.0,0.05636201]
[1765805069535,0.4306966,89394.0,89393.0,0.05636201]
[1765805069728,0.4326966,89394.0,89393.0,0.05636201]
[1765805069924,0.4306966,89394.0,89393.0,0.05636201]
[1765805070139,0.4336966,89394.0,89393.0,0.05636201]
[1765805070341,0.4316966,89394.0,89393.0,0.05636201]
[1765805070540,0.4336966,89394.0,89393.0,0.05636201]
[1765805070938,0.4306966,89394.0,89393.0,0.05636201]
[1765805071139,0.4326966,89394.0,89393.0,0.05636201]
[1765805071542,0.42151,89394.0,89393.0,0.05636201]
[1765805072426,0.00016778,89402.0,89401.0,0.0660357]
[1765805072640,0.00016778,89402.0,89401.0,0.14624874]
[1765805073034,5.165e-05,89408.0,89407.0,0.066035]
[1765805073537,0.05740165,89408.0,89407.0,0.05485]
[1765805074239,0.05740165,89408.0,89407.0,0.05585]
[1765805074441,0.07523165,89408.0,89407.0,0.001]
[1765805075140,0.05735,89405.0,89404.0,0.69976]
[1765805075330,0.0702,89400.0,89399.0,0.00016778]
[1765805075736,0.3608,89400.0,89399.0,0.06620378]
[1765805075944,0.41815,89400.0,89399.0,0.06620378]
[1765805076243,0.43498,89400.0,89399.0,0.05501778]
[1765805076444,0.41815,89400.0,89399.0,0.74381778]
[1765805077343,0.41915,89400.0,89399.0,0.71669778]
[1765805077534,0.43598,89400.0,89399.0,0.71669778]
[1765805077735,0.41915,89400.0,89399.0,0.74381778]
[1765805078542,0.41915,89400.0,89399.0,0.74481778]
[1765805078733,0.41915,89400.0,89399.0,0.75600378]
[1765805079337,0.41915,89400.0,89399.0,0.74481778]
[1765805081147,0.3618,89400.0,89399.0,0.74481778]
[1765805082146,0.3618,89400.0,89399.0,0.82502315]
[1765805082339,0.001,89400.0,89399.0,0.74481778]
[1765805082639,0.001,89400.0,89399.0,0.82509126]
[1765805083042,0.001,89400.0,89399.0,0.13629126]
[1765805083338,0.02905,89400.0,89399.0,0.83637126]
[1765805083544,0.001,89400.0,89399.0,0.83637126]
[1765805084546,0.001,89400.0,89399.0,0.75609778]
[1765805085547,0.001,89400.0,89399.0,0.05601778]
[1765805085746,0.05835,89400.0,89399.0,0.75613778]
[1765805086541,0.001,89400.0,89399.0,0.75613778]
[1765805090733,0.05835,89400.0,89399.0,0.75613778]
[1765805092543,0.05835,89400.0,89399.0,0.05601778]
[1765805092742,0.05835,89400.0,89399.0,0.75601778]
[1765805094541,0.05835,89400.0,89399.0,0.05601778]
[1765805094840,0.001,89400.0,89399.0,0.58657778]
[1765805095041,0.02905,89400.0,89399.0,0.58657778]
[1765805099549,0.001,89400.0,89399.0,0.58657778]
[1765805099754,0.3608,89405.0,89404.0,0.0660354]
[1765805100952,5.165e-05,89408.0,89407.0,0.066035]
[1765805101173,0.3608,89413.0,89412.0,0.0801444]
[1765805101450,0.3608,89413.0,89412.0,0.7801044]
[1765805101651,0.4183,89413.0,89412.0,0.75493]
[1765805102658,0.4183,89413.0,89412.0,0.02773]
[1765805102963,0.0680447,89409.0,89408.0,0.10811393]
[1765805103147,0.0680447,89409.0,89408.0,0.45383393]
[1765805103347,0.0680454,89404.0,89403.0,0.19829291]
[1765805103547,0.0680454,89404.0,89403.0,0.89841291]
[1765805103748,0.05686,89404.0,89403.0,0.7662954]
[1765805104451,0.05686,89404.0,89403.0,0.05499]
[1765805104653,0.05686,89404.0,89403.0,0.75507]
[1765805105563,0.05786,89409.0,89408.0,0.05499]
[1765805105854,0.05686,89409.0,89408.0,0.05499]
[1765805106258,0.41766,89410.0,89409.0,0.05499]
[1765805106649,0.3608,89410.0,89409.0,0.05499]
[1765805107244,0.38821,89410.0,89409.0,0.05499]
[1765805107445,0.41866,89410.0,89409.0,0.05499]
[1765805108962,0.41854812,89410.0,89409.0,0.05499]
[1765805111450,0.42973272,89410.0,89409.0,0.13543449]
[1765805112547,0.42973272,89410.0,89409.0,0.80817449]
[1765805112752,0.42973272,89410.0,89409.0,0.83547449]
[1765805114665,0.42973272,89410.0,89409.0,0.84665919]
[1765805114962,0.42973272,89410.0,89409.0,0.14661919]
[1765805115163,0.42973272,89410.0,89409.0,0.81429919]
[1765805115663,0.41854812,89410.0,89409.0,0.81429919]
[1765805115862,0.36168812,89410.0,89409.0,0.81429919]
[1765805116053,0.36168812,89410.0,89409.0,0.7338547]
[1765805116654,0.001,89410.0,89409.0,0.7338547]
[1765805117063,0.3608,89425.0,89415.0,0.066174]
[1765805119464,0.00116778,89416.0,89415.0,0.066174]
[1765805120570,0.41766,89440.0,89439.0,0.066171]
[1765805120755,0.41753192,89440.0,89439.0,0.766251]
[1765805122067,0.41753192,89440.0,89439.0,0.75507]
[1765805122769,0.42253192,89440.0,89439.0,0.75507]
[1765805123661,0.42253192,89440.0,89439.0,0.02769]
[1765805123868,0.05686,89432.0,89431.0,0.06633978]
[1765805124068,0.41766,89432.0,89431.0,0.28237978]
[1765805124863,0.41766,89432.0,89431.0,0.27119778]
[1765805126164,0.42166,89432.0,89431.0,0.27119778]
[1765805127070,0.42166,89432.0,89431.0,0.05515778]
[1765805127372,0.42166,89432.0,89431.0,0.55971778]
[1765805127780,0.39221,89432.0,89431.0,0.55971778]
[1765805131469,0.39221,89432.0,89431.0,0.05515778]
[1765805131670,0.39221,89432.0,89431.0,0.75499778]
[1765805131870,0.3648,89432.0,89431.0,0.75499778]
[1765805135172,0.05948778,89448.0,89447.0,0.06869]
[1765805135482,0.05948778,89448.0,89447.0,0.76845]
[1765805136267,0.03016778,89448.0,89447.0,0.76845]
[1765805137384,0.05948778,89448.0,89447.0,0.76845]
[1765805137678,0.00016778,89448.0,89447.0,0.76845]
[1765805138469,0.03016778,89448.0,89447.0,0.76845]
[1765805139283,0.05924781,89448.0,89447.0,0.77045]
[1765805140084,0.02992781,89448.0,89447.0,0.77045]
[1765805141280,0.05924781,89448.0,89447.0,0.002]
[1765805141582,0.19924781,89448.0,89447.0,0.39536]
[1765805142571,0.19924781,89448.0,89447.0,0.45287]
[1765805142777,0.05924781,89448.0,89447.0,0.46205]
[1765805142982,0.06024781,89448.0,89447.0,0.46205]
[1765805143780,0.06024781,89448.0,89447.0,0.45087]
[1765805144286,0.07750781,89448.0,89447.0,0.45087]
[1765805145482,0.06024781,89448.0,89447.0,0.45087]
[1765805145673,0.03092781,89448.0,89447.0,0.45087]
[1765805145875,0.02992781,89448.0,89447.0,0.45087]
[1765805146074,0.05924781,89448.0,89447.0,0.45187]
[1765805149687,0.05924781,89448.0,89447.0,0.45087]
[1765805151081,0.02992781,89448.0,89447.0,0.45087]
[1765805151276,0.3908,89449.0,89448.0,0.0866699]
[1765805151582,0.42012,89449.0,89448.0,0.0866699]
[1765805151789,0.3908,89449.0,89448.0,0.0866699]
[1765805152382,0.42012,89449.0,89448.0,0.0866699]
[1765805152581,0.41988004,89449.0,89448.0,0.0866699]
[1765805153180,0.39056004,89449.0,89448.0,0.0866699]
[1765805153991,0.39056004,89449.0,89448.0,0.0876699]
[1765805154492,0.41988004,89449.0,89448.0,0.0876699]
[1765805162086,0.36056004,89449.0,89448.0,0.0876699]
[1765805163096,0.38862004,89449.0,89448.0,0.16786825]
[1765805163290,0.36056004,89449.0,89448.0,0.0876699]
[1765805165906,0.02822778,89456.0,89455.0,0.081779]
[1765805166099,0.19822778,89456.0,89455.0,0.081779]
[1765805166301,0.05724778,89456.0,89455.0,0.081779]
[1765805167200,0.02822778,89456.0,89455.0,0.081779]
[1765805167401,0.00016778,89456.0,89455.0,0.081779]
[1765805167594,0.00016778,89456.0,89455.0,0.17086072]
[1765805168709,0.41788,89479.0,89478.0,0.0697961]
[1765805169004,0.41788,89479.0,89478.0,0.3664761]
[1765805170200,0.05708,89479.0,89478.0,0.37206943]
[1765805170405,0.02822769,89487.0,89486.0,0.0697951]
[1765805170596,0.08724769,89487.0,89486.0,0.0697951]
[1765805172006,0.08724769,89487.0,89486.0,0.0717951]
[1765805172803,0.09842269,89487.0,89486.0,0.002]
[1765805173295,0.08724769,89487.0,89486.0,0.002]
[1765805173693,0.08724769,89487.0,89486.0,0.03164]
[1765805174101,0.05724769,89487.0,89486.0,0.05962]
[1765805174904,0.05724769,89487.0,89486.0,0.05862]
[1765805175103,0.05700772,89487.0,89486.0,0.05862]
[1765805176110,0.05700772,89487.0,89486.0,0.03364]
[1765805176608,0.05700772,89487.0,89486.0,0.03064]
[1765805176796,0.05700772,89487.0,89486.0,0.03364]
[1765805177001,0.05700772,89487.0,89486.0,0.06262]
[1765805177512,0.05700772,89487.0,89486.0,0.06162]
[1765805178008,0.38886,89490.0,89489.0,0.05862]
[1765805178207,0.41788,89490.0,89489.0,0.05862]
[1765805179410,0.41788,89490.0,89489.0,0.05962]
[1765805181010,0.41788,89490.0,89489.0,0.06262]
[1765805181406,0.02822769,89495.0,89494.0,0.0697941]
[1765805181706,0.02822769,89495.0,89494.0,0.7692341]
[1765805182015,0.05724769,89495.0,89494.0,0.7692341]
[1765805183614,0.05724769,89495.0,89494.0,0.7712341]
[1765805184497,0.05724769,89495.0,89494.0,0.70144]
[1765805184701,0.05724769,89495.0,89494.0,0.70044]
[1765805184902,0.05724769,89495.0,89494.0,0.70344]
[1765805185103,0.05724769,89495.0,89494.0,0.73308]
[1765805185612,0.05724769,89495.0,89494.0,0.70344]
[1765805185814,0.05724769,89495.0,89494.0,0.76206]
[1765805186013,0.05724769,89495.0,89494.0,0.76106]
[1765805186222,0.05724769,89495.0,89494.0,0.76206]
[1765805187313,0.21724769,89495.0,89494.0,0.70344]
[1765805187513,0.20724769,89495.0,89494.0,0.70044]
[1765805188316,0.19724769,89495.0,89494.0,0.70244]
[1765805188903,0.05724769,89495.0,89494.0,0.73108]
[1765805189107,0.05824769,89495.0,89494.0,0.73108]
[1765805189309,0.05824769,89495.0,89494.0,0.70144]
[1765805190117,0.16824769,89495.0,89494.0,0.70144]
[1765805190517,0.16824769,89495.0,89494.0,0.69944]
[1765805190720,0.16824769,89495.0,89494.0,0.70044]
[1765805191510,0.05824769,89495.0,89494.0,0.77559]
[1765805191710,0.05824769,89495.0,89494.0,0.77659]
[1765805192112,0.05724769,89495.0,89494.0,0.77659]
[1765805193823,0.22724769,89495.0,89494.0,0.77459]
[1765805194022,0.22724769,89495.0,89494.0,0.77659]
[1765805195521,0.23842169,89495.0,89494.0,0.77659]
[1765805195721,0.05724769,89495.0,89494.0,0.77659]
[1765805197616,0.05724769,89495.0,89494.0,0.77459]
[1765805197817,0.05724769,89495.0,89494.0,0.77659]
[1765805200725,0.03471829,89495.0,89494.0,0.77659]
[1765805207329,0.0022347,89498.0,89494.0,0.78179283]
[1765805207525,0.0022347,89498.0,89497.0,0.3608]
[1765805208136,0.0022347,89498.0,89497.0,0.3719737]
[1765805209339,0.0022347,89498.0,89497.0,0.3739737]
[1765805211236,0.0867547,89498.0,89497.0,0.4609637]
[1765805211539,0.0022347,89498.0,89497.0,0.4609637]
[1765805219432,0.0439847,89498.0,89497.0,0.4609637]
[1765805220628,0.0867547,89498.0,89497.0,0.44979]
[1765805220936,0.0867547,89498.0,89497.0,0.08899]
[1765805221727,0.2167547,89498.0,89497.0,0.002]
[1765805222241,0.1014937,89497.0,89496.0,0.74341]
[1765805222439,0.1014937,89497.0,89496.0,0.6988]
[1765805222440,0.2514937,89497.0,89496.0,0.6988]
[1765805223141,0.2514937,89497.0,89496.0,0.74341]
[1765805223838,0.2514937,89497.0,89496.0,0.6988]
[1765805225141,0.2514937,89497.0,89496.0,0.74341]
[1765805225342,0.2514937,89497.0,89496.0,0.7873]
[1765805225545,0.27651319,89497.0,89496.0,0.6988]
[1765805226040,0.12851319,89497.0,89496.0,0.6988]
[1765805226340,0.26851319,89497.0,89496.0,0.6988]
[1765805226844,0.26951319,89497.0,89496.0,0.6988]
[1765805227043,0.1014946,89490.0,89489.0,0.08866769]
[1765805227243,0.6682046,89490.0,89489.0,0.00016769]
[1765805228540,0.69320697,89490.0,89489.0,0.00016769]
[1765805230141,0.6692046,89490.0,89489.0,0.00016769]
[1765805230741,0.6722046,89490.0,89489.0,0.00016769]
[1765805232842,0.6712046,89490.0,89489.0,0.00016769]
[1765805233041,0.6722046,89490.0,89489.0,0.00016769]
[1765805233645,0.6712046,89490.0,89489.0,0.00016769]
[1765805233844,0.6722046,89490.0,89489.0,0.00016769]
[1765805234435,0.6712046,89490.0,89489.0,0.00016769]
[1765805234636,0.6722046,89490.0,89489.0,0.00016769]
[1765805237254,0.6712046,89490.0,89489.0,0.00016769]
[1765805237447,0.6722046,89490.0,89489.0,0.00016769]
[1765805238048,0.6712046,89490.0,89489.0,0.00016769]
[1765805238354,0.6722046,89490.0,89489.0,0.00016769]
[1765805240552,0.6722046,89490.0,89478.0,0.01676943]
[1765805240553,0.101496,89479.0,89478.0,0.10526943]
[1765805240854,0.291496,89479.0,89478.0,0.0996761]
[1765805241446,0.291496,89479.0,89478.0,0.1154836]
[1765805242249,0.291496,89479.0,89478.0,0.1043075]
[1765805243352,0.291496,89479.0,89478.0,0.0158075]
[1765805243549,0.101497,89471.0,89470.0,0.08866769]
[1765805243750,0.592297,89471.0,89470.0,0.08866769]
[1765805244548,0.652297,89471.0,89470.0,0.08866769]
[1765805245151,0.653297,89471.0,89470.0,0.08866769]
[1765805245352,0.653297,89471.0,89470.0,0.08966769]
[1765805246044,0.652297,89471.0,89470.0,0.08966769]
[1765805246256,0.653297,89471.0,89470.0,0.08966769]
[1765805246656,0.653297,89471.0,89470.0,0.10404864]
[1765805247254,0.653297,89471.0,89470.0,0.10304864]
[1765805247454,0.653297,89471.0,89470.0,0.10404864]
[1765805248754,0.653297,89471.0,89470.0,0.10304864]
[1765805248953,0.653297,89471.0,89470.0,0.10404864]
[1765805250049,0.652297,89471.0,89470.0,0.10404864]
[1765805251555,0.652297,89471.0,89470.0,0.10304864]
[1765805251855,0.652297,89471.0,89470.0,0.10404864]
[1765805252050,0.653297,89471.0,89470.0,0.10404864]
[1765805255352,0.643297,89471.0,89470.0,0.10404864]
[1765805256459,0.463297,89471.0,89470.0,0.10404864]
[1765805256662,0.653297,89471.0,89470.0,0.10404864]
[1765805266258,0.653297,89471.0,89470.0,0.11522574]
[1765805266466,0.653297,89471.0,89470.0,0.01554864]
[1765805266769,0.653297,89471.0,89470.0,0.09895864]
[1765805267670,0.64212,89471.0,89470.0,0.09895864]
[1765805269470,0.28132,89471.0,89470.0,0.09895864]
[1765805269769,0.23717,89471.0,89470.0,0.09895864]
[1765805270265,0.289357,89471.0,89470.0,0.09895864]
[1765805270570,0.27818,89471.0,89470.0,0.09895864]
[1765805273173,0.23717,89471.0,89470.0,0.09895864]
[1765805273473,0.27818,89471.0,89470.0,0.09895864]
[1765805274074,0.289357,89471.0,89470.0,0.09895864]
[1765805274877,0.650157,89471.0,89470.0,0.01554864]
[1765805282980,0.67518237,89471.0,89470.0,0.01554864]
[1765805283371,0.650157,89471.0,89470.0,0.01554864]
[1765805283566,0.67518016,89471.0,89470.0,0.01554864]
[1765805285375,0.650157,89471.0,89470.0,0.01554864]
[1765805286381,0.650157,89471.0,89470.0,0.10805574]
[1765805286688,0.560157,89471.0,89470.0,0.10805574]
[1765805286986,0.630157,89471.0,89470.0,0.10805574]
[1765805287182,0.61898,89471.0,89470.0,0.10805574]
[1765805287378,0.25818,89471.0,89470.0,0.10805574]
[1765805287579,0.21717,89471.0,89470.0,0.10805574]
[1765805287981,0.25676,89471.0,89470.0,0.10805574]
[1765805290989,0.21717,89471.0,89470.0,0.10805574]
[1765805291379,0.253,89471.0,89470.0,0.10805574]
[1765805291976,0.171,89471.0,89470.0,0.10805574]
[1765805292592,0.21341,89471.0,89470.0,0.10805574]
[1765805293386,0.253,89471.0,89470.0,0.10805574]
[1765805301199,0.001,89471.0,89470.0,0.10805574]
[1765805307223,0.00016769,89479.0,89478.0,0.0925061]
[1765805307521,0.00016769,89479.0,89478.0,1.3377461]
[1765805308322,0.00016769,89479.0,89478.0,1.41799998]
[1765805308820,0.00216769,89479.0,89478.0,1.3377461]
[1765805309220,0.00216769,89479.0,89478.0,1.42554437]
[1765805310618,0.00192774,89479.0,89478.0,1.42554437]
[1765805311527,0.00192774,89479.0,89478.0,1.50577427]
[1765805312015,0.00192774,89479.0,89478.0,1.5342868]
[1765805312216,0.00192774,89479.0,89478.0,1.4540569]
[1765805312417,0.00011107,89487.0,89478.0,1.4117969]
[1765805312616,0.08544107,89487.0,89486.0,0.4468451]
[1765805312821,0.07544107,89487.0,89486.0,1.1456451]
[1765805313421,0.03709107,89487.0,89486.0,1.1456451]
[1765805313623,0.07544107,89487.0,89486.0,1.1456451]
[1765805314723,0.07544107,89487.0,89486.0,1.1456051]
[1765805314922,0.07644107,89487.0,89486.0,1.1456051]
[1765805315128,0.07827337,89487.0,89486.0,1.1456051]
[1765805315714,0.07727337,89487.0,89486.0,1.1456051]
[1765805315917,0.08027337,89487.0,89486.0,1.1456051]
[1765805316730,0.005,89487.0,89486.0,1.0707351]
[1765805319133,0.095,89487.0,89486.0,1.0707351]
[1765805319536,0.005,89487.0,89486.0,1.0707351]